bitfinex/quotes_BTCUSD_20250604
["timestamp","ask_amount","ask_price","bid_price","bid_amount"]
[1749067541400,0.77082883,104750.0,104740.0,0.23920829]
[1749067541624,0.78037509,104750.0,104740.0,0.23920829]
[1749067541885,0.97130587,104750.0,104740.0,0.04140829]
[1749067542120,0.9426689,104750.0,104740.0,0.20766829]
[1749067542565,0.9426689,104750.0,104740.0,0.20767018]
[1749067543266,0.9426689,104750.0,104740.0,0.20767019]
[1749067543487,0.9426689,104750.0,104740.0,0.19876]
[1749067543703,0.9426689,104750.0,104740.0,0.20767018]
[1749067544380,0.9426689,104750.0,104740.0,0.20767266]
[1749067544601,0.9426689,104750.0,104740.0,0.19876]
[1749067544815,0.9426689,104750.0,104740.0,0.00991266]
[1749067545005,0.9426689,104750.0,104740.0,0.20759266]
[1749067545231,0.9426689,104750.0,104740.0,0.19868]
[1749067545461,0.9426689,104750.0,104740.0,0.05095266]
[1749067545723,0.9426689,104750.0,104740.0,0.20759274]
[1749067545940,0.9426689,104750.0,104740.0,0.20759276]
[1749067546161,0.9426689,104750.0,104740.0,0.20755276]
[1749067546596,0.9426689,104750.0,104740.0,0.20755511]
[1749067547087,0.9016689,104750.0,104740.0,0.19864]
[1749067547300,0.9016689,104750.0,104740.0,0.20755626]
[1749067548672,0.9016689,104750.0,104740.0,0.20756112]
[1749067549632,0.9016689,104750.0,104740.0,0.22366112]
[1749067550249,0.9016689,104750.0,104740.0,0.22366182]
[1749067550459,0.9016689,104750.0,104740.0,0.42962182]
[1749067550864,0.9016689,104750.0,104740.0,0.22306]
[1749067551081,0.9016689,104750.0,104740.0,0.42950182]
[1749067551888,0.9016689,104750.0,104740.0,0.40448]
[1749067552539,0.9016689,104750.0,104740.0,0.41340349]
[1749067552747,0.9016689,104750.0,104740.0,0.41340348]
[1749067553826,0.9016689,104750.0,104740.0,0.41948]
[1749067554027,0.8606689,104750.0,104740.0,0.42840348]
[1749067554237,0.8606689,104750.0,104740.0,0.41948]
[1749067554460,1.61090994,104750.0,104740.0,0.41936]
[1749067554679,0.9836689,104750.0,104740.0,0.23088395]
[1749067554882,1.73390994,104750.0,104740.0,0.25692395]
[1749067555085,0.9836689,104750.0,104740.0,0.41328395]
[1749067555499,0.9836689,104750.0,104740.0,0.4132855]
[1749067556159,0.9836689,104750.0,104740.0,0.40436]
[1749067556409,0.9836689,104750.0,104740.0,0.41328577]
[1749067557081,1.73390994,104750.0,104740.0,0.41328577]
[1749067557298,1.72436368,104750.0,104740.0,0.40428]
[1749067557513,1.72436368,104750.0,104740.0,0.41320577]
[1749067557725,0.20049627,104740.0,104730.0,0.01599119]
[1749067557932,1.70097835,104740.0,104730.0,0.40337119]
[1749067558132,1.70097835,104740.0,104730.0,0.4122976]
[1749067558588,1.70097835,104740.0,104730.0,0.2560176]
[1749067558816,1.70097835,104740.0,104730.0,0.2149776]
[1749067559030,1.70097835,104740.0,104730.0,0.41533785]
[1749067559244,1.70097835,104740.0,104730.0,0.415338]
[1749067559479,1.70097835,104740.0,104730.0,0.217978]
[1749067559689,1.82863265,104740.0,104730.0,0.40645119]
[1749067560102,1.82863265,104740.0,104730.0,0.415378]
[1749067560528,1.82863265,104740.0,104730.0,0.41537779]
[1749067560731,1.82863265,104740.0,104730.0,0.41337779]
[1749067560946,1.82963265,104740.0,104730.0,0.25601779]
[1749067561162,1.79063265,104740.0,104730.0,0.41233779]
[1749067561372,1.80017991,104740.0,104730.0,0.40341119]
[1749067561577,1.80017991,104740.0,104730.0,0.41233779]
[1749067562422,1.78367991,104740.0,104730.0,0.21497779]
[1749067562625,1.78367991,104740.0,104730.0,0.41229348]
[1749067562831,1.78367991,104740.0,104730.0,0.40337119]
[1749067562967,1.76837991,104740.0,104730.0,0.41229348]
[1749067564156,1.76837991,104740.0,104730.0,0.21497348]
[1749067564369,1.76837991,104740.0,104730.0,0.41229116]
[1749067566586,1.76837991,104740.0,104730.0,0.41228959]
[1749067567486,1.76837991,104740.0,104730.0,0.21496959]
[1749067567711,1.76837991,104740.0,104730.0,0.25560959]
[1749067567925,1.76837991,104740.0,104730.0,0.41176923]
[1749067568143,1.78497991,104740.0,104730.0,0.41180923]
[1749067568364,1.78497991,104740.0,104730.0,0.40289119]
[1749067568365,1.78791991,104740.0,104730.0,0.40289119]
[1749067568871,1.78791991,104740.0,104730.0,0.41180933]
[1749067569090,0.55010345,104710.0,104700.0,0.00037576]
[1749067569310,0.55010345,104710.0,104690.0,0.0309]
[1749067569311,0.20057287,104700.0,104690.0,0.0309]
[1749067569531,1.71060577,104700.0,104690.0,0.27754]
[1749067570210,1.71060577,104700.0,104690.0,0.2369]
[1749067570211,1.73948693,104700.0,104690.0,0.2369]
[1749067570430,0.02824085,104680.0,104670.0,0.0327]
[1749067570651,1.52872283,104680.0,104670.0,0.22974]
[1749067570876,1.50062561,104680.0,104670.0,0.22974]
[1749067571105,0.75038457,104680.0,104670.0,0.22974]
[1749067571374,1.50062561,104680.0,104670.0,0.07338]
[1749067571570,1.71078927,104680.0,104670.0,0.05698]
[1749067571785,1.52928364,104680.0,104670.0,0.2163]
[1749067572001,1.51973081,104680.0,104670.0,0.0223]
[1749067572233,1.74968566,104680.0,104670.0,0.06298]
[1749067572457,1.74013292,104680.0,104670.0,0.04668]
[1749067572672,1.74013292,104680.0,104670.0,0.2]
[1749067572891,1.55862646,104680.0,104670.0,0.2]
[1749067573114,1.54907373,104680.0,104670.0,0.2155]
[1749067573332,1.55862601,104680.0,104670.0,0.2318]
[1749067573552,1.55862601,104680.0,104670.0,0.2288]
[1749067573795,1.55862601,104680.0,104670.0,0.2298]
[1749067574044,1.54907364,104680.0,104670.0,0.2308]
[1749067574258,1.55862637,104680.0,104670.0,0.43688]
[1749067574483,1.54907373,104680.0,104670.0,0.43688]
[1749067574922,1.54907382,104680.0,104670.0,0.43688]
[1749067575146,1.53952154,104680.0,104670.0,0.43688]
[1749067575400,1.54907364,104680.0,104670.0,0.43688]
[1749067575848,1.53952154,104680.0,104670.0,0.43688]
[1749067576068,1.54907373,104680.0,104670.0,0.43688]
[1749067576280,1.54907373,104680.0,104670.0,0.23984]
[1749067576493,1.53952154,104680.0,104670.0,0.43684]
[1749067576949,1.54907373,104680.0,104670.0,0.43684]
[1749067577381,1.53952154,104680.0,104670.0,0.43684]
[1749067577616,0.7892805,104680.0,104670.0,0.45458182]
[1749067578080,0.03903946,104680.0,104670.0,0.45458182]
[1749067578307,0.7892805,104680.0,104670.0,0.45458182]
[1749067578520,0.55895704,104680.0,104670.0,0.45458182]
[1749067579157,0.59702114,104680.0,104670.0,0.45458182]
[1749067579621,0.59702114,104680.0,104670.0,0.43684]
[1749067579842,0.59702114,104680.0,104670.0,0.45457764]
[1749067580048,0.59702114,104680.0,104670.0,0.45457763]
[1749067581359,0.59702114,104680.0,104670.0,0.44570881]
[1749067581817,0.0380641,104680.0,104670.0,0.46344643]
[1749067582056,0.78830514,104680.0,104670.0,0.46344641]
[1749067582277,0.75024104,104680.0,104670.0,0.26644641]
[1749067582493,0.78956466,104680.0,104670.0,0.44554879]
[1749067582722,0.78956466,104680.0,104670.0,0.26644994]
[1749067582934,0.78956466,104680.0,104670.0,0.46328994]
[1749067583148,0.78956466,104680.0,104670.0,0.43668]
[1749067583384,0.78956466,104680.0,104670.0,0.46328994]
[1749067583817,0.78956466,104680.0,104670.0,0.46340994]
[1749067584244,0.78956466,104680.0,104670.0,0.46341711]
[1749067584459,0.78956466,104680.0,104670.0,0.45454713]
[1749067584731,0.78956466,104680.0,104670.0,0.46342069]
[1749067586061,0.78956466,104680.0,104670.0,0.463422]
[1749067586487,0.78956466,104680.0,104670.0,0.44567948]
[1749067586713,0.78956466,104680.0,104670.0,0.46343844]
[1749067586939,0.03932362,104680.0,104670.0,0.46343844]
[1749067587163,0.78956466,104680.0,104670.0,0.46343844]
[1749067587404,0.75024104,104680.0,104670.0,0.85929604]
[1749067587631,1.21089931,104700.0,104680.0,0.0312]
[1749067587849,0.75024104,104690.0,104680.0,0.05724174]
[1749067588103,0.75024104,104690.0,104680.0,0.21352174]
[1749067588319,0.75024104,104690.0,104680.0,0.20464902]
[1749067588586,0.75024104,104690.0,104680.0,0.21353353]
[1749067588795,0.55584294,104690.0,104680.0,0.19576448]
[1749067589010,0.55584294,104690.0,104680.0,0.21353344]
[1749067589470,0.55584294,104690.0,104680.0,0.21353343]
[1749067589720,0.51629616,104690.0,104680.0,0.21353343]
[1749067589931,0.51729616,104690.0,104680.0,0.21353343]
[1749067590571,0.51829616,104690.0,104680.0,0.21353559]
[1749067590785,0.51829616,104690.0,104680.0,0.21353989]
[1749067591554,0.51829616,104690.0,104680.0,0.21354182]
[1749067591770,0.51829616,104690.0,104680.0,0.21354569]
[1749067592398,0.51829616,104690.0,104680.0,0.21355655]
[1749067592617,0.5564246,104690.0,104680.0,0.21355658]
[1749067593054,0.5564246,104690.0,104680.0,0.21355656]
[1749067593263,0.5564246,104690.0,104680.0,0.21351655]
[1749067593484,0.5564246,104690.0,104680.0,0.19573218]
[1749067593725,0.5564246,104690.0,104680.0,0.30937093]
[1749067593957,0.5564246,104690.0,104680.0,0.30047868]
[1749067594162,0.5564246,104690.0,104680.0,0.3093875]
[1749067594604,0.5564246,104690.0,104680.0,0.30939067]
[1749067595103,0.5564246,104690.0,104680.0,0.30939226]
[1749067595323,0.5564246,104690.0,104680.0,0.29159362]
[1749067595748,0.5564246,104690.0,104680.0,0.30939227]
[1749067595960,0.5564246,104690.0,104680.0,0.29159362]
[1749067596170,0.5564246,104690.0,104680.0,0.30940946]
[1749067596807,0.5564246,104690.0,104680.0,0.30941905]
[1749067597022,0.5564246,104690.0,104680.0,0.29160321]
[1749067597256,0.5564246,104690.0,104680.0,0.30942104]
[1749067597893,0.5564246,104690.0,104680.0,0.05732674]
[1749067598111,0.5564246,104690.0,104680.0,0.25416674]
[1749067598773,0.5564246,104690.0,104680.0,0.25421206]
[1749067599662,0.5564246,104690.0,104680.0,0.25421135]
[1749067599934,0.5564246,104690.0,104680.0,0.25421057]
[1749067600800,0.56597588,104690.0,104680.0,0.25421057]
[1749067601016,0.56597597,104690.0,104680.0,0.46029057]
[1749067601232,0.56597588,104690.0,104680.0,0.46029057]
[1749067601472,0.59463071,104690.0,104680.0,0.46020988]
[1749067601680,0.58507889,104690.0,104680.0,0.4602085]
[1749067601899,0.59463062,104690.0,104680.0,0.43344]
[1749067602129,0.58507889,104690.0,104680.0,0.45128606]
[1749067602350,0.57552734,104690.0,104680.0,0.44236303]
[1749067602567,0.57552734,104690.0,104680.0,0.30408909]
[1749067602789,0.58507898,104690.0,104680.0,0.46020912]
[1749067602998,0.58507889,104690.0,104680.0,0.45128609]
[1749067603226,0.57552734,104690.0,104680.0,0.26344996]
[1749067603440,0.57552734,104690.0,104680.0,0.45136609]
[1749067603694,0.58507889,104690.0,104680.0,0.4602504]
[1749067603907,0.58507889,104690.0,104680.0,0.46025289]
[1749067604124,0.07833437,104690.0,104680.0,0.43348]
[1749067604336,0.81902377,104690.0,104680.0,0.46025315]
[1749067604757,0.80947222,104690.0,104680.0,0.46025315]
[1749067605025,0.81902377,104690.0,104680.0,0.46025315]
[1749067605228,0.81902377,104690.0,104680.0,0.46025471]
[1749067605456,0.04967972,104690.0,104680.0,0.46025782]
[1749067605707,0.79992076,104690.0,104680.0,0.4602578]
[1749067605919,0.04012844,104690.0,104680.0,0.46025771]
[1749067606138,0.79036948,104690.0,104680.0,0.46025771]
[1749067606797,0.78936948,104690.0,104680.0,0.46026152]
[1749067606997,0.78936948,104690.0,104680.0,0.46126152]
[1749067607288,0.78836948,104690.0,104680.0,0.46126337]
[1749067607795,0.78836948,104690.0,104680.0,0.46226337]
[1749067608660,0.78836948,104690.0,104680.0,0.46226537]
[1749067609533,0.451108,104700.0,104690.0,0.0316]
[1749067609754,1.17251593,104700.0,104690.0,0.05838537]
[1749067610251,1.17251593,104700.0,104690.0,0.04052779]
[1749067610465,1.17251593,104700.0,104690.0,0.04052822]
[1749067610673,1.17251593,104700.0,104690.0,0.04052818]
[1749067610917,1.17351593,104700.0,104690.0,0.04053035]
[1749067611135,1.17451593,104700.0,104690.0,0.0316]
[1749067611395,0.00204805,104700.0,104690.0,0.43638467]
[1749067612323,0.00204805,104700.0,104690.0,0.44199515]
[1749067612324,0.00104805,104700.0,104690.0,0.44199515]
[1749067612547,0.00104805,104700.0,104690.0,0.45092478]
[1749067612766,0.00104805,104700.0,104690.0,0.45192478]
[1749067612978,0.00104805,104700.0,104690.0,0.44299515]
[1749067613179,4.805e-05,104700.0,104690.0,0.45192045]
[1749067614071,4.805e-05,104700.0,104690.0,0.44399515]
[1749067614298,4.805e-05,104700.0,104690.0,0.45292187]
[1749067614727,4.805e-05,104700.0,104690.0,0.45292186]
[1749067615211,4.805e-05,104700.0,104690.0,0.45291885]
[1749067615417,0.75028909,104700.0,104690.0,0.45291885]
[1749067615628,0.75028909,104700.0,104690.0,0.44399515]
[1749067615833,0.75028909,104700.0,104690.0,0.45292011]
[1749067616680,0.75028909,104700.0,104690.0,0.60904011]
[1749067617113,0.75028909,104700.0,104690.0,0.59449926]
[1749067617337,0.70928909,104700.0,104690.0,0.59449926]
[1749067617775,0.70928909,104700.0,104690.0,0.5855743]
[1749067617985,0.70928909,104700.0,104690.0,0.59449895]
[1749067619506,0.70928909,104700.0,104690.0,0.5855743]
[1749067619720,0.70928909,104700.0,104690.0,0.5944972]
[1749067620439,0.70928909,104700.0,104690.0,0.59449644]
[1749067620661,0.70928909,104700.0,104690.0,0.63339398]
[1749067620882,0.70928909,104700.0,104690.0,0.63339349]
[1749067621112,0.70928909,104700.0,104690.0,0.6333932]
[1749067621327,0.70928909,104700.0,104690.0,0.62447184]
[1749067621769,0.70928909,104700.0,104690.0,0.6333932]
[1749067622868,0.70928909,104700.0,104690.0,0.63339293]
[1749067623288,0.70928909,104700.0,104690.0,0.62447184]
[1749067623501,0.70928909,104700.0,104690.0,0.63339293]
[1749067624138,0.03853617,104710.0,104690.0,0.63339293]
[1749067624361,0.03853617,104710.0,104700.0,0.42934193]
[1749067624587,0.03853617,104710.0,104700.0,0.4675943]
[1749067624588,0.75024104,104710.0,104700.0,0.4675943]
[1749067624797,0.75024104,104710.0,104700.0,0.47651469]
[1749067625008,0.75024104,104710.0,104700.0,0.47651471]
[1749067625492,0.75024104,104710.0,104700.0,0.43587471]
[1749067625715,0.75979058,104710.0,104690.0,0.3321]
[1749067625929,0.00954954,104710.0,104700.0,0.19676]
[1749067626373,0.001,104710.0,104700.0,0.23678061]
[1749067627063,0.001,104710.0,104700.0,0.22786]
[1749067627273,0.75224104,104710.0,104700.0,0.22786]
[1749067627694,0.75224104,104710.0,104700.0,0.23677986]
[1749067627926,0.75124104,104710.0,104700.0,0.23677989]
[1749067628141,0.75024104,104710.0,104700.0,0.23677989]
[1749067628360,0.75024104,104710.0,104700.0,0.00992008]
[1749067628361,1.55098181,104710.0,104700.0,0.00992008]
[1749067628581,1.7324358,104710.0,104700.0,0.20664008]
[1749067629232,1.7324358,104710.0,104700.0,0.19872]
[1749067629447,1.7324358,104710.0,104700.0,0.20764104]
[1749067629889,1.7324358,104710.0,104700.0,0.05152104]
[1749067630123,1.7324358,104710.0,104700.0,0.20764104]
[1749067630806,1.7324358,104710.0,104700.0,0.01092104]
[1749067630807,1.7515328,104710.0,104700.0,0.01092104]
[1749067631026,1.7515328,104710.0,104700.0,0.20764104]
[1749067631464,1.7105328,104710.0,104700.0,0.20764104]
[1749067632532,1.7105328,104710.0,104700.0,0.19872]
[1749067633208,1.7105328,104710.0,104700.0,0.20764363]
[1749067633659,0.25105072,104710.0,104700.0,0.20764508]
[1749067633897,1.7515328,104710.0,104700.0,0.20764508]
[1749067634093,1.7610828,104710.0,104700.0,0.20764508]
[1749067634296,1.57962881,104710.0,104700.0,0.19872]
[1749067634520,1.77063253,104710.0,104700.0,0.20764502]
[1749067634741,1.77063253,104710.0,104700.0,0.20764501]
[1749067634953,1.77063253,104710.0,104700.0,0.20764502]
[1749067635167,1.77063253,104710.0,104700.0,0.20764499]
[1749067635369,1.77063253,104710.0,104700.0,0.20764492]
[1749067635832,1.54822881,104710.0,104700.0,0.20764492]
[1749067636036,1.5577789,104710.0,104700.0,0.20764492]
[1749067636461,0.79798722,104710.0,104700.0,0.20764627]
[1749067636676,0.75024104,104710.0,104700.0,0.23914627]
[1749067636908,0.75979049,104710.0,104700.0,0.23914627]
[1749067637123,0.00954936,104710.0,104700.0,0.23914559]
[1749067637321,0.7597904,104710.0,104700.0,0.23914559]
[1749067637533,0.76934003,104710.0,104700.0,0.23914559]
[1749067637985,0.76934003,104710.0,104700.0,0.23914602]
[1749067638655,0.72834003,104710.0,104700.0,0.23914602]
[1749067638869,0.73788939,104710.0,104700.0,0.22364602]
[1749067639101,0.73788939,104710.0,104700.0,0.21472]
[1749067639320,0.73788939,104710.0,104700.0,0.22364766]
[1749067639595,0.7378893,104710.0,104700.0,0.22364766]
[1749067639865,0.7378893,104710.0,104700.0,0.21472]
[1749067640095,0.7378893,104710.0,104700.0,0.22364819]
[1749067641014,0.72833976,104710.0,104700.0,0.22364819]
[1749067641244,0.7378893,104710.0,104700.0,0.22364818]
[1749067641520,0.7378893,104710.0,104700.0,0.42972818]
[1749067641726,0.7378893,104710.0,104700.0,0.42972859]
[1749067641727,0.74743903,104710.0,104700.0,0.42972859]
[1749067641947,1.49768016,104710.0,104700.0,0.41372859]
[1749067642173,1.50723007,104710.0,104700.0,0.41372903]
[1749067642379,1.49768016,104710.0,104700.0,0.41372903]
[1749067643035,1.49768007,104710.0,104700.0,0.41372903]
[1749067643254,1.48813034,104710.0,104700.0,0.41372903]
[1749067643474,1.48813034,104710.0,104700.0,0.4048]
[1749067643682,1.48813034,104710.0,104700.0,0.41372843]
[1749067644524,1.49768007,104710.0,104700.0,0.41372843]
[1749067644743,1.49768007,104710.0,104700.0,0.4048]
[1749067644958,1.49768007,104710.0,104700.0,0.41372857]
[1749067645172,1.48813034,104710.0,104700.0,0.41372857]
[1749067645408,1.48813034,104710.0,104700.0,0.4048]
[1749067645631,1.45668007,104710.0,104700.0,0.41372857]
[1749067646574,1.45668007,104710.0,104700.0,0.4048]
[1749067646798,1.45668007,104710.0,104700.0,0.41372878]
[1749067647900,1.47578062,104710.0,104700.0,0.41372878]
[1749067648118,1.65723462,104710.0,104700.0,0.41372878]
[1749067648329,1.64768489,104710.0,104700.0,0.21700878]
[1749067648548,1.67878489,104710.0,104700.0,0.41372852]
[1749067648769,1.67878489,104710.0,104700.0,0.4048]
[1749067649219,1.68833507,104710.0,104700.0,0.21700853]
[1749067649436,1.68833507,104710.0,104700.0,0.41372853]
[1749067649679,1.68833507,104710.0,104700.0,0.4048]
[1749067649896,1.67878525,104710.0,104700.0,0.41372927]
[1749067650134,1.67878525,104710.0,104700.0,0.4137293]
[1749067650347,1.66923534,104710.0,104700.0,0.4137293]
[1749067650580,1.66923534,104710.0,104700.0,0.41372885]
[1749067650803,1.66923534,104710.0,104700.0,0.4038]
[1749067650804,1.76508964,104710.0,104700.0,0.4038]
[1749067651047,1.76508964,104710.0,104700.0,0.41172944]
[1749067651259,2.10608964,104710.0,104700.0,0.25560873]
[1749067651480,2.10708964,104710.0,104700.0,0.41172873]
[1749067652140,2.10708964,104710.0,104700.0,0.41172902]
[1749067653067,2.17954028,104710.0,104700.0,0.41172902]
[1749067653302,2.17954028,104710.0,104700.0,0.21500738]
[1749067653520,2.15799001,104710.0,104700.0,0.41172738]
[1749067653741,2.14844028,104710.0,104700.0,0.4028]
[1749067653961,2.17884028,104710.0,104700.0,0.4028]
[1749067654189,2.17884028,104710.0,104700.0,0.41172632]
[1749067655962,2.16344028,104710.0,104700.0,0.41172632]
[1749067656233,2.14844028,104710.0,104700.0,0.41172632]
[1749067656441,2.14844028,104710.0,104700.0,0.44202632]
[1749067656442,0.76179049,104710.0,104700.0,0.44202632]
[1749067656660,0.77134012,104710.0,104700.0,0.44202756]
[1749067657104,0.78088985,104710.0,104700.0,0.44202756]
[1749067657532,0.79043967,104710.0,104700.0,0.44202748]
[1749067657753,0.79043967,104710.0,104700.0,0.4331]
[1749067657983,0.77134012,104710.0,104700.0,0.44202748]
[1749067658635,0.78089003,104710.0,104700.0,0.44202748]
[1749067659137,1.53113098,104710.0,104700.0,0.4331]
[1749067659601,1.53113098,104710.0,104700.0,0.44202956]
[1749067659840,1.52158116,104710.0,104700.0,0.44202956]
[1749067660081,1.53113098,104710.0,104700.0,0.44202951]
[1749067660551,1.54068107,104710.0,104700.0,0.44202951]
[1749067660806,1.53113098,104710.0,104700.0,0.44202968]
[1749067661041,1.54068098,104710.0,104700.0,0.4331]
[1749067661503,1.52158116,104710.0,104700.0,0.44202968]
[1749067661726,1.53113098,104710.0,104700.0,0.44202968]
[1749067662188,1.54068089,104710.0,104700.0,0.44202968]
[1749067662867,1.53113098,104710.0,104700.0,0.44202968]
[1749067663082,1.53113098,104710.0,104700.0,0.44202992]
[1749067663738,1.53113098,104710.0,104700.0,0.4420304]
[1749067664213,1.53113098,104710.0,104700.0,0.4331]
[1749067664431,1.53113098,104710.0,104700.0,0.4509608]
[1749067664638,1.54068107,104710.0,104700.0,0.4509608]
[1749067664873,1.54068098,104710.0,104700.0,0.4509608]
[1749067665097,1.55023116,104710.0,104700.0,0.4509608]
[1749067665881,1.55023116,104710.0,104700.0,0.45096102]
[1749067666740,1.55023116,104710.0,104700.0,0.45096103]
[1749067666968,1.7316847,104710.0,104700.0,0.45096103]
[1749067667186,1.54068098,104710.0,104700.0,0.45096103]
[1749067667610,1.54068098,104710.0,104700.0,0.45096177]
[1749067667887,1.55023116,104710.0,104700.0,0.45096177]
[1749067668323,1.54068098,104710.0,104700.0,0.45096177]
[1749067669251,1.55023116,104710.0,104700.0,0.45096216]
[1749067669484,1.73168543,104710.0,104700.0,0.45096216]
[1749067669710,1.7221358,104710.0,104700.0,0.43576216]
[1749067670375,1.7221358,104710.0,104700.0,0.4268304]
[1749067670596,1.53113199,104710.0,104700.0,0.4268304]
[1749067670815,1.53113199,104710.0,104700.0,0.43576276]
[1749067671029,1.72213571,104710.0,104700.0,0.43576276]
[1749067671467,1.53113199,104710.0,104700.0,0.43576276]
[1749067672029,1.72213571,104710.0,104700.0,0.43576311]
[1749067672426,1.72213571,104710.0,104700.0,0.4268304]
[1749067672626,1.71258589,104710.0,104700.0,0.42066311]
[1749067673470,1.71258589,104710.0,104700.0,0.4117304]
[1749067673689,1.71258589,104710.0,104700.0,0.43656335]
[1749067674534,1.71258589,104710.0,104700.0,0.4365637]
[1749067675255,1.71258589,104710.0,104700.0,0.42066402]
[1749067675719,1.72396729,104710.0,104700.0,0.42066402]
[1749067675723,1.71258589,104710.0,104700.0,0.42066402]
[1749067675962,1.72396729,104710.0,104700.0,0.4117304]
[1749067676210,1.72396729,104710.0,104700.0,0.42066484]
[1749067676699,1.72396729,104710.0,104700.0,0.42066506]
[1749067678404,1.72396729,104710.0,104700.0,0.42062506]
[1749067679535,1.72396729,104710.0,104700.0,0.42062598]
[1749067679759,1.72396729,104710.0,104700.0,0.42062619]
[1749067680216,1.72396729,104710.0,104700.0,0.45102619]
[1749067680905,1.72396729,104710.0,104700.0,0.43582619]
[1749067681143,1.72396729,104710.0,104700.0,0.42062619]
[1749067681404,1.71441729,104710.0,104700.0,0.42062613]
[1749067681639,1.71441729,104710.0,104700.0,0.4116904]
[1749067681875,1.71441729,104710.0,104700.0,0.42062632]
[1749067682112,1.71441729,104710.0,104700.0,0.42054883]
[1749067682587,1.71441729,104710.0,104700.0,0.41161291]
[1749067684304,1.81027159,104710.0,104700.0,0.21493291]
[1749067684532,2.18237159,104710.0,104700.0,0.41161291]
[1749067685173,2.18238053,104710.0,104700.0,0.41161291]
[1749067686671,2.17283044,104710.0,104690.0,0.0158]
[1749067686897,1.70105495,104700.0,104690.0,0.0158]
[1749067687137,1.70105495,104700.0,104690.0,0.26248]
[1749067687573,1.70105495,104700.0,104690.0,0.24668]
[1749067688085,1.70105495,104700.0,104690.0,0.40476]
[1749067688327,1.70105495,104700.0,104690.0,0.20708]
[1749067688328,1.73115495,104700.0,104690.0,0.20708]
[1749067688580,1.73115495,104700.0,104690.0,0.40372]
[1749067688816,1.75980395,104700.0,104690.0,0.24864]
[1749067689065,1.74480395,104700.0,104690.0,0.40472]
[1749067689291,1.72970395,104700.0,104690.0,0.40372]
[1749067689975,1.72970395,104700.0,104690.0,0.40472]
[1749067691195,1.70105495,104700.0,104690.0,0.40472]
[1749067692349,1.71060577,104700.0,104690.0,0.42012]
[1749067695739,1.71060577,104700.0,104690.0,0.43572]
[1749067698011,1.71060577,104700.0,104690.0,0.27964]
[1749067698224,1.71060577,104700.0,104690.0,0.43572]
[1749067698455,1.50623323,104700.0,104690.0,0.43572]
[1749067698666,1.7068061,104700.0,104690.0,0.43572]
[1749067698880,1.7068061,104700.0,104690.0,0.44465247]
[1749067699089,1.7068061,104700.0,104690.0,0.44465302]
[1749067699760,1.7068061,104700.0,104690.0,0.44465304]
[1749067699978,1.49668241,104700.0,104690.0,0.44465304]
[1749067700191,0.00954945,104710.0,104700.0,0.0318]
[1749067700433,0.76934003,104710.0,104700.0,0.04073304]
[1749067700868,0.78843985,104710.0,104700.0,0.0318]
[1749067701077,0.77888985,104710.0,104700.0,0.0318]
[1749067701294,0.77888976,104710.0,104700.0,0.0318]
[1749067701520,0.77988976,104710.0,104700.0,0.0318]
[1749067701732,0.78088976,104710.0,104700.0,0.0318]
[1749067701949,0.77134003,104710.0,104700.0,0.0318]
[1749067702163,0.78088985,104710.0,104700.0,0.0318]
[1749067702423,0.78088976,104710.0,104700.0,0.0318]
[1749067702640,1.5311308,104710.0,104700.0,0.0318]
[1749067703089,1.55023062,104710.0,104700.0,0.0318]
[1749067703320,1.54068062,104710.0,104700.0,0.0318]
[1749067705081,1.55023062,104710.0,104700.0,0.0318]
[1749067705296,1.54068062,104710.0,104700.0,0.0318]
[1749067711319,1.53113089,104710.0,104700.0,0.0318]
[1749067711554,1.5311308,104710.0,104700.0,0.0318]
[1749067712013,1.5311308,104710.0,104700.0,0.07236]
[1749067712241,0.002,104710.0,104700.0,0.07236]
[1749067712460,0.75224104,104710.0,104700.0,0.07236]
[1749067715882,0.46009382,104720.0,104710.0,0.0318]
[1749067715885,0.46964227,104720.0,104710.0,0.0318]
[1749067716270,1.2390726,104720.0,104710.0,0.18784]
[1749067716530,1.23907251,104720.0,104710.0,0.18784]
[1749067717267,1.24107251,104720.0,104710.0,0.18784]
[1749067718018,1.2315237,104720.0,104710.0,0.18784]
[1749067718251,1.24107242,104720.0,104710.0,0.18784]
[1749067718742,1.24107242,104720.0,104710.0,0.39388]
[1749067718970,1.25062132,104720.0,104710.0,0.39388]
[1749067720553,1.26017032,104720.0,104710.0,0.39388]
[1749067721008,1.25062132,104720.0,104710.0,0.39388]
[1749067721537,1.26017032,104720.0,104710.0,0.39388]
[1749067721761,1.21242662,104720.0,104710.0,0.39388]
[1749067721981,1.22197516,104720.0,104710.0,0.39388]
[1749067722884,1.18097516,104720.0,104710.0,0.39388]
[1749067723327,1.23005769,104720.0,104710.0,0.39388]
[1749067723548,1.22050897,104720.0,104710.0,0.39388]
[1749067723765,1.23005769,104720.0,104710.0,0.39388]
[1749067723983,1.22050897,104720.0,104710.0,0.39388]
[1749067724443,1.23005769,104720.0,104710.0,0.39388]
[1749067724654,1.22050897,104720.0,104710.0,0.39388]
[1749067725555,1.21096043,104720.0,104710.0,0.39388]
[1749067726649,1.21096043,104720.0,104710.0,0.23784]
[1749067726871,1.21096043,104720.0,104710.0,0.43436]
[1749067729684,0.79186661,104720.0,104710.0,0.43436]
[1749067729896,0.75086661,104720.0,104710.0,0.43436]
[1749067733173,1.54264701,104720.0,104710.0,0.43436]
[1749067735054,1.54264701,104720.0,104710.0,0.5302143]
[1749067736985,1.50164701,104720.0,104710.0,0.5302143]
[1749067737181,1.54079342,104720.0,104710.0,0.5302143]
[1749067741360,1.54079342,104720.0,104710.0,0.3742143]
[1749067741562,1.54079342,104720.0,104710.0,0.5302143]
[1749067744214,1.49979342,104720.0,104710.0,0.5302143]
[1749067747125,1.49979342,104720.0,104710.0,0.40256]
[1749067748185,0.7515566,104710.0,104700.0,0.01454085]
[1749067748411,0.7515566,104710.0,104700.0,0.11039515]
[1749067749287,0.7515566,104710.0,104700.0,0.26639515]
[1749067749512,0.7515566,104710.0,104700.0,0.26739515]
[1749067750158,0.7515566,104710.0,104700.0,0.29989515]
[1749067750383,0.7515566,104710.0,104700.0,0.30089515]
[1749067751261,0.7105566,104710.0,104700.0,0.30089515]
[1749067754174,0.7105566,104710.0,104700.0,0.54745515]
[1749067758053,0.03914641,104720.0,104700.0,0.51495515]
[1749067758416,0.07594096,104730.0,104720.0,0.016]
[1749067758611,1.53805416,104730.0,104720.0,0.18756]
[1749067759028,1.53805416,104730.0,104720.0,0.23046704]
[1749067759029,0.78649756,104730.0,104720.0,0.23046704]
[1749067759242,0.78649756,104730.0,104720.0,0.22808]
[1749067759500,0.78649756,104730.0,104720.0,0.3239343]
[1749067759964,0.7515566,104740.0,104730.0,0.3154]
[1749067760174,1.5031132,104740.0,104730.0,0.4112543]
[1749067760641,1.5031132,104740.0,104730.0,0.4276543]
[1749067764194,1.54260963,104740.0,104730.0,0.4276543]
[1749067764853,1.54260963,104740.0,104730.0,0.74219515]
[1749067765677,1.50160963,104740.0,104730.0,0.74219515]
[1749067767021,1.50160963,104740.0,104730.0,0.74619515]